[Event "Superettan 2017/2018"]
[Site "Vegagatan 20, Gothenburg, Sweden"]
[Date "2018.02.02"]
[Round "1.5"]
[White "Hansson, Fredrik"]
[Black "Akesson, Joel"]
[Result "1-0"]
[TimeControl "90 minutes for 40 moves + 30 minutes for the rest of the game + 30 seconds per move from move one."]
[BlackTitle "FM"]
[WhiteFideId "1713256"]
[BlackFideId "1705040"]
[WhiteElo "2177"]
[BlackElo "2279"]

1. e4 {[%clk 01:30:55]} {[%emt 00:00:04]} e6 {[%clk 01:30:52]} {[%emt
00:00:09]} 2. d4 {[%clk 01:31:01]} {[%emt 00:00:24]} d5 {[%clk 01:31:16]}
{[%emt 00:00:04]} 3. exd5 {[%emt 00:00:26]} exd5 {[%emt 00:00:08]} 4. c4 {[%emt
00:00:07]} Bb4+ {[%emt 00:00:10]} 5. Nc3 {[%clk 01:31:53]} Ne7 {[%emt
00:03:45]} 6. Nf3 {[%emt 00:06:59]} Nbc6 {[%emt 00:00:41]} 7. h3 {[%emt
00:05:40]} Bf5 {[%emt 00:02:44]} 8. Be2 {[%emt 00:05:34]} O-O {[%emt 00:01:30]}
9. O-O {[%emt 00:06:13]} dxc4 {[%clk 01:09:15]} {[%emt 00:00:32]} 10. Bxc4
{[%clk 01:25:44]} {[%emt 00:00:19]} Bg6 {[%clk 01:00:30]} {[%emt 00:09:16]} 11.
a3 {[%clk 01:19:11]} {[%emt 00:33:49]} Bxc3 12. bxc3 {[%clk 01:19:30]} Nd5
{[%clk 00:54:17]} 13. Bd2 {[%clk 00:37:08]} {[%emt 00:23:29]} Qd6 {[%clk
00:44:18]} {[%emt 00:10:28]} 14. Re1 {[%clk 00:28:46]} {[%emt 00:08:54]} Rad8
{[%clk 00:31:05]} {[%emt 00:13:42]} 15. Nh4 {[%clk 00:26:42]} {[%emt 00:02:34]}
Nb6 {[%clk 00:25:17]} {[%emt 00:06:19]} 16. Nxg6 {[%clk 00:25:31]} {[%emt
00:01:42]} hxg6 {[%clk 00:25:41]} {[%emt 00:00:06]} 17. Ba2 {[%clk 00:23:30]}
{[%emt 00:02:31]} Qf6 {[%clk 00:21:20]} {[%emt 00:04:50]} 18. Qg4 {[%clk
00:20:30]} {[%emt 00:03:30]} Qf5 {[%clk 00:20:19]} {[%emt 00:01:30]} 19. Qg3
{[%clk 00:17:55]} {[%emt 00:03:07]} Rd7 {[%clk 00:11:33]} {[%emt 00:09:14]} 20.
Bf4 {[%clk 00:13:22]} {[%emt 00:05:04]} Rc8 {[%clk 00:09:50]} {[%emt 00:02:13]}
21. Re2 {[%clk 00:11:37]} {[%emt 00:02:16]} Nd5 {[%clk 00:06:40]} {[%emt
00:03:40]} 22. Bd2 {[%clk 00:09:42]} {[%emt 00:02:25]} Nf6 {[%clk 00:04:17]}
{[%emt 00:02:53]} 23. Rae1 {[%clk 00:09:12]} {[%emt 00:01:01]} b6 {[%clk
00:04:22]} {[%emt 00:00:25]} 24. Bg5 {[%clk 00:05:53]} {[%emt 00:03:49]} Nh5
{[%clk 00:02:27]} {[%emt 00:02:25]} 25. Qh4 {[%clk 00:06:10]} {[%emt 00:00:13]}
Qd3 {[%clk 00:01:41]} {[%emt 00:01:15]} 26. Bb1 {[%clk 00:05:55]} {[%emt
00:00:45]} Qxc3 {[%clk 00:01:55]} {[%emt 00:00:15]} 27. Re8+ {[%clk 00:06:18]}
{[%emt 00:00:08]} 1-0

[Event "Superettan 2017/2018"]
[Site "Vegagatan 20, Gothenburg, Sweden"]
[Date "2018.02.02"]
[Round "1.6"]
[White "Pettersson, Anders"]
[Black "Eksmyr, Johan"]
[Result "0-1"]
[TimeControl "90 minutes for 40 moves + 30 minutes for the rest of the game + 30 seconds per move from move one."]
[WhiteFideId "1715143"]
[BlackFideId "1704346"]
[WhiteElo "2076"]
[BlackElo "2181"]

1. d4 {[%clk 01:27:38]} {[%emt 00:03:21]} Nf6 {[%clk 01:30:55]} {[%emt
00:00:05]} 2. c4 {[%clk 01:28:02]} {[%emt 00:00:06]} g6 {[%clk 01:31:12]}
{[%emt 00:00:13]} 3. Nc3 {[%clk 01:28:27]} {[%emt 00:00:05]} d5 {[%clk
01:31:38]} {[%emt 00:00:04]} 4. Bf4 {[%clk 01:28:51]} {[%emt 00:00:05]} Bg7
{[%clk 01:32:03]} {[%emt 00:00:06]} 5. e3 {[%clk 01:29:16]} {[%emt 00:00:05]}
c5 {[%clk 01:32:16]} {[%emt 00:00:16]} 6. dxc5 {[%clk 01:29:31]} {[%emt
00:00:15]} Qa5 {[%clk 01:32:25]} {[%emt 00:00:21]} 7. Qb3 {[%clk 01:26:33]}
{[%emt 00:03:28]} dxc4 {[%clk 01:14:48]} {[%emt 00:18:05]} 8. Bxc4 {[%clk
01:25:21]} {[%emt 00:01:43]} O-O {[%clk 01:14:18]} {[%emt 00:01:01]} 9. Qb5
{[%clk 01:20:40]} {[%emt 00:05:11]} Qxb5 {[%clk 01:06:57]} {[%emt 00:07:51]} 10.
Nxb5 {[%clk 01:19:46]} {[%emt 00:01:24]} Nc6 {[%clk 01:05:02]} {[%emt
00:34:44]} 11. Nc7 {[%clk 01:07:57]} Rb8 {[%clk 01:04:11]} 12. Nd5 {[%clk
01:07:03]} Nxd5 13. Bxd5 {[%clk 00:58:09]} Bxb2 {[%clk 00:59:18]} 14. Bxb8
{[%clk 00:55:33]} {[%emt 00:01:08]} Bxa1 {[%clk 00:58:10]} {[%emt 00:01:39]} 15.
Bxc6 {[%clk 00:55:06]} {[%emt 00:00:57]} Bc3+ {[%clk 00:48:49]} {[%emt
00:09:51]} 16. Kd1 {[%clk 00:48:53]} {[%emt 00:06:43]} bxc6 {[%clk 00:48:18]}
{[%emt 00:01:01]} 17. Bxa7 {[%clk 00:48:19]} {[%emt 00:01:04]} Rd8+ {[%clk
00:44:44]} {[%emt 00:04:02]} 18. Kc2 {[%clk 00:46:23]} {[%emt 00:02:26]} Be1
{[%clk 00:41:22]} {[%emt 00:03:51]} 19. Nh3 {[%clk 00:37:38]} {[%emt 00:09:16]}
Bf5+ {[%clk 00:40:44]} {[%emt 00:01:07]} 20. Kb3 {[%clk 00:28:15]} {[%emt
00:09:53]} Be6+ {[%clk 00:27:14]} {[%emt 00:14:00]} 21. Ka4 {[%clk 00:23:31]}
{[%emt 00:05:15]} Bc3 {[%clk 00:09:08]} {[%emt 00:18:35]} 22. Rc1 {[%clk
00:21:33]} {[%emt 00:02:28]} Be5 {[%clk 00:08:27]} {[%emt 00:01:11]} 23. Kb4
{[%clk 00:19:05]} {[%emt 00:02:58]} Ra8 {[%clk 00:08:32]} {[%emt 00:00:25]} 24.
Bb6 {[%clk 00:19:09]} {[%emt 00:00:27]} Rxa2 {[%clk 00:08:45]} {[%emt
00:00:18]} 25. Nf4 {[%clk 00:15:57]} {[%emt 00:03:40]} Bxf4 {[%clk 00:05:22]}
{[%emt 00:03:53]} 26. exf4 {[%clk 00:16:26]} {[%emt 00:00:01]} Rxf2 {[%clk
00:05:41]} {[%emt 00:00:12]} 27. g3 {[%clk 00:08:06]} {[%emt 00:08:50]} Rxh2
{[%clk 00:05:59]} {[%emt 00:00:12]} 28. Rd1 {[%clk 00:08:29]} {[%emt 00:00:06]}
Rb2+ {[%clk 00:05:44]} {[%emt 00:00:45]} 29. Ka5 {[%clk 00:07:42]} {[%emt
00:01:18]} f6 {[%clk 00:03:17]} {[%emt 00:02:58]} 30. Ka6 {[%clk 00:07:46]}
{[%emt 00:00:25]} Rg2 {[%clk 00:01:18]} {[%emt 00:02:29]} 31. Rd3 {[%clk
00:04:48]} {[%emt 00:03:28]} Bc4+ {[%clk 00:01:45]} {[%emt 00:00:02]} 0-1

[Event "Superettan 2017/2018"]
[Site "Vegagatan 20, Gothenburg, Sweden"]
[Date "2018.02.02"]
[Round "1.7"]
[White "Fransson, Patrick"]
[Black "Storme, Isak"]
[Result "1/2-1/2"]
[TimeControl "90 minutes for 40 moves + 30 minutes for the rest of the game + 30 seconds per move from move one."]
[BlackTitle "CM"]
[WhiteFideId "1709305"]
[BlackFideId "1728113"]
[WhiteElo "2136"]
[BlackElo "2213"]

1. d4 {[%clk 01:30:56]} {[%emt 00:00:03]} Nf6 {[%clk 01:30:40]} {[%emt
00:00:20]} 2. Bg5 {[%clk 01:31:13]} {[%emt 00:00:13]} d5 {[%clk 01:30:24]}
{[%emt 00:00:46]} 3. Nd2 {[%clk 01:30:02]} {[%emt 00:01:42]} c5 {[%clk
01:29:55]} {[%emt 00:01:00]} 4. e3 {[%clk 01:29:51]} {[%emt 00:00:41]} Nc6
{[%clk 01:29:44]} {[%emt 00:00:40]} 5. c3 {[%clk 01:29:05]} {[%emt 00:01:15]}
e6 {[%clk 01:28:42]} {[%emt 00:01:32]} 6. Bd3 {[%clk 01:28:09]} {[%emt
00:01:26]} Bd6 {[%clk 01:24:47]} {[%emt 00:04:25]} 7. f4 {[%clk 01:26:22]}
{[%emt 00:02:18]} cxd4 {[%clk 01:23:00]} {[%emt 00:02:17]} 8. exd4 {[%clk
01:23:55]} {[%emt 00:02:57]} h6 {[%clk 01:22:58]} {[%emt 00:00:31]} 9. Bxf6
{[%clk 01:22:40]} {[%emt 00:01:45]} Qxf6 {[%clk 01:23:15]} {[%emt 00:00:13]} 10.
g3 {[%clk 01:21:34]} {[%emt 00:01:36]} g5 {[%clk 01:15:28]} {[%emt 00:08:17]}
11. Qf3 {[%clk 01:18:11]} {[%emt 00:03:52]} gxf4 {[%clk 01:11:34]} {[%emt
00:04:25]} 12. O-O-O {[%clk 01:10:34]} {[%emt 00:36:25]} Bd7 {[%clk 00:54:51]}
13. Ne2 {[%clk 01:07:30]} O-O-O {[%clk 00:54:29]} 14. gxf4 {[%clk 00:56:27]}
{[%emt 00:04:53]} Ne7 {[%clk 00:47:36]} {[%emt 00:07:23]} 15. Rdf1 {[%clk
00:47:13]} {[%emt 00:09:44]} Rdg8 {[%clk 00:41:28]} {[%emt 00:06:39]} 16. Ng3
{[%clk 00:45:39]} {[%emt 00:02:03]} h5 {[%clk 00:38:33]} {[%emt 00:03:25]} 17.
Nxh5 {[%clk 00:42:41]} {[%emt 00:03:27]} Qh4 {[%clk 00:37:56]} {[%emt
00:01:07]} 18. Ng3 {[%clk 00:41:21]} {[%emt 00:01:50]} Bxf4 {[%clk 00:36:37]}
{[%emt 00:01:50]} 19. Qxf4 {[%clk 00:34:52]} {[%emt 00:06:58]} Qxf4 {[%clk
00:36:30]} {[%emt 00:00:37]} 20. Rxf4 {[%clk 00:35:21]} Rxg3 {[%clk 00:36:31]}
{[%emt 00:00:29]} 21. Rxf7 {[%clk 00:32:01]} {[%emt 00:03:50]} Rxd3 {[%clk
00:27:42]} {[%emt 00:09:19]} 22. Rxe7 {[%clk 00:31:48]} {[%emt 00:00:43]} Rdh3
{[%clk 00:27:33]} {[%emt 00:00:38]} 23. Rg7 {[%clk 00:24:36]} {[%emt 00:07:42]}
Rxh2 {[%clk 00:19:39]} {[%emt 00:08:25]} 24. Rxh2 {[%clk 00:24:15]} {[%emt
00:00:51]} Rxh2 {[%clk 00:20:03]} {[%emt 00:00:06]} 25. Nf3 {[%clk 00:23:33]}
{[%emt 00:01:12]} Rh1+ {[%clk 00:17:10]} {[%emt 00:03:23]} 26. Kc2 {[%clk
00:21:18]} {[%emt 00:02:46]} Ra1 {[%clk 00:15:36]} {[%emt 00:02:03]} 27. Kb3
{[%clk 00:18:00]} {[%emt 00:03:48]} Bb5 {[%clk 00:15:09]} {[%emt 00:00:56]} 28.
Ne5 {[%clk 00:17:41]} {[%emt 00:00:50]} Bc4+ {[%clk 00:14:58]} {[%emt
00:00:41]} 29. Nxc4 {[%clk 00:17:28]} {[%emt 00:00:43]} dxc4+ {[%clk 00:15:22]}
{[%emt 00:00:06]} 30. Kxc4 {[%clk 00:17:53]} {[%emt 00:00:06]} Rxa2 {[%clk
00:15:46]} {[%emt 00:00:06]} 31. b4 {[%clk 00:12:32]} {[%emt 00:05:50]} Ra6
{[%clk 00:12:34]} {[%emt 00:03:42]} 32. b5 {[%clk 00:10:41]} {[%emt 00:02:21]}
Rd6 {[%clk 00:12:28]} {[%emt 00:00:34]} 33. Re7 {[%clk 00:10:43]} {[%emt
00:00:30]} a6 {[%clk 00:11:27]} {[%emt 00:01:31]} 34. bxa6 {[%clk 00:08:50]}
{[%emt 00:02:24]} Rxa6 {[%clk 00:11:51]} {[%emt 00:00:06]} 35. Kd3 {[%clk
00:08:25]} {[%emt 00:00:54]} Rb6 {[%clk 00:10:27]} {[%emt 00:01:53]} 36. c4
{[%clk 00:05:36]} {[%emt 00:03:20]} Kd8 {[%clk 00:10:00]} {[%emt 00:00:56]} 37.
Rh7 {[%clk 00:05:53]} {[%emt 00:00:13]} Rb3+ {[%clk 00:09:51]} {[%emt
00:00:39]} 38. Kc2 {[%clk 00:05:54]} {[%emt 00:00:30]} Rb6 {[%clk 00:08:49]}
{[%emt 00:01:30]} 39. c5 {[%clk 00:05:33]} {[%emt 00:00:52]} Rc6 {[%clk
00:07:18]} {[%emt 00:02:01]} 40. Rxb7 {[%clk 00:04:00]} {[%emt 00:02:04]} e5
{[%clk 00:07:40]} {[%emt 00:00:08]} 41. Kd3 {[%clk 00:04:19]} {[%emt 00:00:11]}
exd4 {[%clk 00:08:03]} {[%emt 00:00:07]} 42. Kxd4 {[%clk 00:04:43]} {[%emt
00:00:06]} Rh6 {[%clk 00:08:03]} {[%emt 00:00:27]} 43. Kc4 {[%clk 00:03:44]}
{[%emt 00:01:31]} Kc8 {[%clk 00:08:06]} {[%emt 00:00:27]} 44. Rg7 {[%clk
00:02:59]} {[%emt 00:01:16]} Rf6 {[%clk 00:07:56]} {[%emt 00:00:39]} 45. Kb5
{[%clk 00:02:20]} {[%emt 00:01:09]} Rh6 {[%clk 00:08:13]} {[%emt 00:00:13]} 46.
Rg1 {[%clk 00:00:47]} {[%emt 00:02:04]} Kc7 {[%clk 00:08:18]} {[%emt 00:00:25]}
47. Ra1 {[%clk 00:01:03]} {[%emt 00:00:14]} Kb7 {[%clk 00:08:27]} {[%emt
00:00:20]} 48. Rf1 {[%clk 00:01:06]} {[%emt 00:00:27]} Kc7 {[%clk 00:08:43]}
{[%emt 00:00:13]} 49. Rf7+ {[%clk 00:01:23]} {[%emt 00:00:14]} Kc8 {[%clk
00:09:06]} {[%emt 00:00:06]} 50. c6 {[%clk 00:01:15]} {[%emt 00:00:39]} Rh1
{[%clk 00:09:28]} {[%emt 00:00:07]} 51. Rf5 {[%clk 00:00:57]} {[%emt 00:00:49]}
Kc7 {[%clk 00:09:45]} {[%emt 00:00:13]} 52. Rf7+ {[%clk 00:01:01]} {[%emt
00:00:26]} 1/2-1/2

[Event "Superettan 2017/2018"]
[Site "Vegagatan 20, Gothenburg, Sweden"]
[Date "2018.02.02"]
[Round "1.8"]
[White "Al Waeli, Laith"]
[Black "Subramanian, Aditya"]
[Result "1/2-1/2"]
[TimeControl "90 minutes for 40 moves + 30 minutes for the rest of the game + 30 seconds per move from move one."]
[WhiteTitle "FM"]
[WhiteFideId "4801059"]
[BlackFideId "1718924"]
[WhiteElo "2069"]
[BlackElo "2133"]

1. d4 {[%clk 01:30:10]} {[%emt 00:00:50]} Nf6 {[%clk 01:30:51]} {[%emt
00:00:08]} 2. c4 {[%clk 01:30:34]} {[%emt 00:00:06]} e6 {[%clk 01:31:15]}
{[%emt 00:00:06]} 3. Nc3 {[%clk 01:31:00]} {[%emt 00:00:04]} Bb4 {[%clk
01:31:38]} {[%emt 00:00:07]} 4. e3 {[%clk 01:29:58]} {[%emt 00:01:32]} O-O
{[%clk 01:31:51]} {[%emt 00:00:17]} 5. Bd3 {[%clk 01:30:10]} {[%emt 00:00:18]}
c5 {[%clk 01:31:51]} {[%emt 00:00:30]} 6. Nf3 {[%clk 01:30:38]} {[%emt
00:00:02]} d5 {[%clk 01:32:11]} {[%emt 00:00:10]} 7. O-O {[%clk 01:30:44]}
{[%emt 00:00:23]} cxd4 {[%clk 01:30:33]} {[%emt 00:02:09]} 8. exd4 {[%clk
01:30:28]} {[%emt 00:00:46]} dxc4 {[%clk 01:31:01]} {[%emt 00:00:03]} 9. Bxc4
{[%clk 01:30:42]} {[%emt 00:00:15]} b6 {[%clk 01:31:29]} {[%emt 00:00:02]} 10.
Bg5 {[%clk 01:28:57]} {[%emt 00:02:16]} Bb7 {[%clk 01:31:38]} {[%emt 00:00:21]}
11. Qe2 {[%clk 01:23:22]} {[%emt 00:06:04]} Bxc3 {[%clk 01:31:03]} {[%emt
00:01:03]} 12. bxc3 {[%clk 01:21:48]} {[%emt 00:02:07]} Nbd7 {[%clk 01:31:22]}
{[%emt 00:00:10]} 13. Rfe1 {[%clk 01:04:33]} {[%emt 00:17:45]} Rc8 {[%clk
01:13:56]} {[%emt 00:41:04]} 14. Ne5 {[%clk 01:02:05]} Qc7 {[%clk 01:08:02]} 15.
Nxd7 Qxd7 {[%clk 01:08:13]} 16. Bxf6 {[%clk 00:49:36]} {[%emt 00:00:03]} gxf6
{[%clk 01:08:35]} {[%emt 00:00:07]} 17. Bd3 {[%clk 00:39:36]} {[%emt 00:10:29]}
Qd5 {[%clk 01:02:26]} {[%emt 00:06:40]} 18. Qg4+ {[%clk 00:38:45]} {[%emt
00:01:22]} Qg5 {[%clk 01:02:27]} {[%emt 00:00:29]} 19. Qh3 {[%clk 00:37:39]}
{[%emt 00:01:36]} f5 {[%clk 01:01:57]} {[%emt 00:00:59]} 20. Re3 {[%clk
00:37:54]} {[%emt 00:00:15]} Kh8 {[%clk 01:01:38]} {[%emt 00:00:49]} 21. Rg3
{[%clk 00:30:30]} {[%emt 00:07:55]} Qf6 {[%clk 01:01:04]} {[%emt 00:01:02]} 22.
Rd1 {[%clk 00:15:10]} {[%emt 00:15:51]} Rg8 {[%clk 00:50:34]} {[%emt 00:10:59]}
23. Rxg8 {[%clk 00:09:44]} {[%emt 00:05:56]} Rxg8 {[%clk 00:50:44]} {[%emt
00:00:20]} 24. Bf1 {[%clk 00:09:58]} {[%emt 00:00:16]} f4 {[%clk 00:39:11]}
{[%emt 00:12:03]} 25. g3 {[%clk 00:02:44]} {[%emt 00:07:44]} Bf3 {[%clk
00:23:10]} {[%emt 00:16:31]} 26. Bd3 {[%clk 00:03:08]} {[%emt 00:00:06]} Rg7
{[%clk 00:20:08]} {[%emt 00:03:32]} 27. Re1 {[%clk 00:03:25]} {[%emt 00:00:13]}
Bg4 {[%clk 00:19:45]} {[%emt 00:00:53]} 28. Qg2 {[%clk 00:03:26]} {[%emt
00:00:28]} f3 {[%clk 00:18:33]} {[%emt 00:01:43]} 29. Qh1 {[%clk 00:02:12]}
{[%emt 00:01:43]} Bh3 {[%clk 00:17:59]} {[%emt 00:01:05]} 30. Bf1 {[%clk
00:02:38]} {[%emt 00:00:04]} Bxf1 {[%clk 00:15:28]} {[%emt 00:03:01]} 31. Kxf1
{[%clk 00:02:35]} {[%emt 00:00:33]} Qf5 {[%clk 00:15:48]} {[%emt 00:00:11]} 32.
h4 {[%clk 00:01:21]} {[%emt 00:01:44]} Qd3+ {[%clk 00:08:12]} {[%emt 00:08:05]}
33. Kg1 {[%clk 00:01:51]} Qd2 {[%clk 00:07:19]} {[%emt 00:01:23]} 34. Rf1
{[%clk 00:00:56]} {[%emt 00:01:25]} Qxc3 {[%clk 00:07:08]} {[%emt 00:00:41]} 35.
h5 {[%clk 00:00:43]} {[%emt 00:00:44]} Qxd4 {[%clk 00:03:35]} {[%emt 00:04:02]}
36. Qxf3 {[%clk 00:00:42]} {[%emt 00:00:32]} Qg4 {[%clk 00:03:53]} {[%emt
00:00:11]} 37. Qf6 {[%clk 00:00:54]} {[%emt 00:00:18]} Qg5 {[%clk 00:03:41]}
{[%emt 00:00:42]} 38. Qf3 {[%clk 00:01:09]} {[%emt 00:00:16]} Qd5 {[%clk
00:04:04]} {[%emt 00:00:06]} 1/2-1/2

[Event "Superettan 2017/2018"]
[Site "Vegagatan 20, Gothenburg, Sweden"]
[Date "2018.02.02"]
[Round "1.9"]
[White "Christiansen, Johan-Sebastian"]
[Black "Aberg, Anton"]
[Result "1-0"]
[TimeControl "90 minutes for 40 moves + 30 minutes for the rest of the game + 30 seconds per move from move one."]
[WhiteTitle "IM"]
[BlackTitle "IM"]
[WhiteFideId "1512668"]
[BlackFideId "1701991"]
[WhiteElo "2498"]
[BlackElo "2368"]

1. Nf3 {[%clk 01:30:30]} d5 {[%clk 01:30:57]} 2. c4 {[%clk 01:30:30]} c6 {[%clk
01:30:57]} 3. g3 {[%clk 01:30:30]} e6 {[%clk 01:30:57]} 4. Bg2 {[%clk
01:30:30]} f5 {[%clk 01:30:57]} 5. O-O {[%clk 01:30:30]} Nf6 {[%clk 01:30:57]}
6. d3 {[%clk 01:30:30]} Bd6 {[%clk 01:30:57]} 7. Nc3 {[%clk 01:30:30]} O-O
{[%clk 01:30:57]} 8. Qc2 {[%clk 01:30:30]} Nbd7 {[%clk 01:30:57]} 9. e4 {[%clk
01:30:30]} fxe4 {[%clk 01:30:57]} 10. dxe4 {[%clk 01:30:30]} dxc4 {[%clk
01:30:57]} 11. Rd1 {[%clk 01:30:30]} Qe7 {[%clk 01:30:57]} 12. Qe2 {[%clk
01:30:30]} e5 {[%clk 01:30:57]} 13. Qxc4+ {[%clk 01:30:30]} Kh8 {[%clk
01:30:57]} 14. Be3 {[%clk 01:30:30]} Nb6 {[%clk 01:30:57]} 15. Qe2 {[%clk
01:30:30]} Bc5 {[%clk 01:30:57]} 16. Bxc5 {[%clk 01:30:30]} Qxc5 {[%clk
01:30:57]} 17. Rac1 {[%clk 01:30:30]} Qe7 {[%clk 01:30:57]} 18. h3 {[%clk
01:30:30]} Bd7 {[%clk 01:30:57]} 19. Rd2 {[%clk 01:30:30]} Rae8 {[%clk
01:30:57]} 20. b3 {[%clk 01:30:30]} Qa3 {[%clk 01:30:57]} 21. Rcd1 {[%clk
01:30:30]} Bc8 {[%clk 01:30:57]} 22. Nb1 {[%clk 01:30:30]} Qe7 {[%clk
01:30:57]} 23. Qe3 {[%clk 01:30:30]} Qb4 {[%clk 01:30:57]} 24. Ne1 {[%clk
01:30:30]} Qe7 {[%clk 01:30:57]} 25. Nd3 {[%clk 01:30:30]} Qf7 {[%clk
01:30:57]} 26. Nc3 {[%clk 01:30:30]} Qh5 {[%clk 01:30:57]} 27. g4 {[%clk
01:30:30]} Qf7 {[%clk 01:30:57]} 28. Nc5 {[%clk 01:30:30]} Qe7 {[%clk
01:30:57]} 29. Nd3 {[%clk 01:30:30]} Qf7 {[%clk 01:30:57]} 30. Ne2 {[%clk
01:30:30]} Nfd7 {[%clk 01:30:57]} 31. Ng3 {[%clk 01:30:30]} g6 {[%clk
01:30:57]} 32. Rb1 {[%clk 01:30:30]} a5 {[%clk 01:30:57]} 33. Rc2 {[%clk
01:30:30]} a4 {[%clk 01:30:57]} 34. bxa4 {[%clk 01:30:30]} Nc4 {[%clk
01:30:57]} 35. Qc1 {[%clk 01:30:30]} Nd6 {[%clk 01:30:57]} 36. Qa3 {[%clk
01:30:30]} Qf6 {[%clk 01:30:57]} 37. g5 {[%clk 01:30:30]} Qe7 {[%clk 01:30:57]}
38. Rd1 {[%clk 01:30:30]} Rd8 {[%clk 01:30:57]} 39. Rcd2 {[%clk 01:30:30]} c5
{[%clk 01:30:57]} 40. Qc3 {[%clk 01:30:30]} c4 {[%clk 01:30:57]} 41. Nb4 {[%clk
01:30:30]} Nc5 {[%clk 01:30:57]} 42. Nd5 {[%clk 01:30:30]} Qg7 {[%clk
01:30:57]} 43. Nb6 {[%clk 01:30:30]} Nd3 {[%clk 01:30:57]} 44. Nxc4 {[%clk
01:30:30]} Nxc4 {[%clk 01:30:57]} 45. Rxd3 {[%clk 01:30:30]} Rxd3 {[%clk
01:30:57]} 46. Rxd3 {[%clk 01:30:30]} Be6 {[%clk 01:30:57]} 47. Qb4 {[%clk
01:30:30]} Kg8 {[%clk 01:30:57]} 48. Ne2 {[%clk 01:30:30]} Qc7 {[%clk
01:30:57]} 49. Nc3 {[%clk 01:30:30]} Na5 {[%clk 01:30:57]} 50. Qd6 {[%clk
01:30:30]} Qxd6 {[%clk 01:30:57]} 51. Rxd6 {[%clk 01:30:30]} Kf7 {[%clk
01:30:57]} 52. Rb6 {[%clk 01:30:30]} Rc8 {[%clk 01:30:57]} 53. Nd5 {[%clk
01:30:30]} Bd7 {[%clk 01:30:57]} 54. Bf1 {[%clk 01:30:30]} Rc1 {[%clk
01:30:57]} 55. Kg2 {[%clk 01:30:30]} Bxa4 {[%clk 01:30:57]} 56. Bb5 {[%clk
01:30:30]} Bc2 {[%clk 01:30:57]} 57. f3 {[%clk 01:30:30]} Bb1 {[%clk 01:30:57]}
58. Rf6+ {[%clk 01:30:30]} Kg8 {[%clk 01:30:57]} 59. Bd7 {[%clk 01:30:30]} Bxa2
{[%clk 01:30:57]} 60. Be6+ {[%clk 01:30:30]} 1-0